[Event "Late-Titled-Tuesday-Blitz-May-14-2024"]
[Site "Chess.com"]
[Date "2024.05.14"]
[Round "8"]
[White "geordie_derraugh"]
[Black "WALDOCHESS"]
[Result "0-1"]
[WhiteElo "2440"]
[BlackElo "2056"]
[TimeControl "180+1"]
[EndTime "15:26:34 PDT"]
[Termination "WALDOCHESS won by resignation"]

1. e4 {[%clk 0:03:00.9]} 1... c5 {[%clk 0:02:58.1]} 2. Nf3 {[%clk 0:02:59.8]}
2... d6 {[%clk 0:02:57.8]} 3. d4 {[%clk 0:02:59.9]} 3... cxd4 {[%clk 0:02:58]}
4. Nxd4 {[%clk 0:03:00.8]} 4... Nf6 {[%clk 0:02:58]} 5. Nc3 {[%clk 0:03:01.5]}
5... a6 {[%clk 0:02:58.2]} 6. Be2 {[%clk 0:03:02]} 6... e5 {[%clk 0:02:57.7]} 7.
Nb3 {[%clk 0:03:02.6]} 7... Be7 {[%clk 0:02:56.2]} 8. Be3 {[%clk 0:03:03]} 8...
Be6 {[%clk 0:02:56.3]} 9. Nd5 {[%clk 0:03:03.3]} 9... Nbd7 {[%clk 0:02:53.9]}
10. Qd3 {[%clk 0:03:03.6]} 10... Bxd5 {[%clk 0:02:39.1]} 11. exd5 {[%clk
0:03:03.7]} 11... O-O {[%clk 0:02:38.5]} 12. g4 {[%clk 0:03:03.8]} 12... b5
{[%clk 0:02:37.2]} 13. g5 {[%clk 0:03:03.5]} 13... Ne8 {[%clk 0:02:35.9]} 14. h4
{[%clk 0:03:03.8]} 14... Nb6 {[%clk 0:02:34.9]} 15. Nd2 {[%clk 0:03:02.5]} 15...
Rc8 {[%clk 0:02:33]} 16. b3 {[%clk 0:02:58.2]} 16... f5 {[%clk 0:02:26.5]} 17.
gxf6 {[%clk 0:02:55.4]} 17... Nxf6 {[%clk 0:02:26.3]} 18. c4 {[%clk 0:02:49]}
18... bxc4 {[%clk 0:02:15.5]} 19. bxc4 {[%clk 0:02:49.9]} 19... Na4 {[%clk
0:02:14.8]} 20. Nb3 {[%clk 0:02:41.6]} 20... Nd7 {[%clk 0:02:04.7]} 21. Bg4
{[%clk 0:02:30.2]} 21... Ndc5 {[%clk 0:01:58.2]} 22. Qe2 {[%clk 0:01:56.2]}
22... Nc3 {[%clk 0:01:43.6]} 23. Qc2 {[%clk 0:01:47.6]} 23... N3e4 {[%clk
0:01:35.6]} 24. Bxc8 {[%clk 0:01:45.6]} 24... Qxc8 {[%clk 0:01:33]} 25. Nxc5
{[%clk 0:01:45.3]} 25... Nxc5 {[%clk 0:01:31.3]} 26. h5 {[%clk 0:01:41.5]} 26...
e4 {[%clk 0:01:30.9]} 27. Bxc5 {[%clk 0:01:33.9]} 27... Qxc5 {[%clk 0:01:29.6]}
28. Rh2 {[%clk 0:01:24]} 28... e3 {[%clk 0:01:15.8]} 29. Qe4 {[%clk 0:01:07.4]}
29... exf2+ {[%clk 0:01:13.1]} 30. Kf1 {[%clk 0:01:05.4]} 30... Bf6 {[%clk
0:01:10.6]} 31. Rc1 {[%clk 0:01:01.3]} 31... Be5 {[%clk 0:01:08.8]} 32. Rg2
{[%clk 0:01:00.4]} 32... Rf4 {[%clk 0:01:04.4]} 33. Qe2 {[%clk 0:00:59.8]} 33...
Qa3 {[%clk 0:00:57.1]} 34. Rb1 {[%clk 0:00:29.9]} 34... Qh3 {[%clk 0:00:56.3]}
35. Rb8+ {[%clk 0:00:29.6]} 35... Kf7 {[%clk 0:00:55.9]} 36. Rb7+ {[%clk
0:00:27.9]} 36... Kf8 {[%clk 0:00:55.8]} 37. Rb8+ {[%clk 0:00:22.7]} 37... Kf7
{[%clk 0:00:55.9]} 38. Rb7+ {[%clk 0:00:22.5]} 38... Kf6 {[%clk 0:00:50]} 39. h6
{[%clk 0:00:02.6]} 39... Qh1+ {[%clk 0:00:48.9]} 0-1

[Event "Late-Titled-Tuesday-Blitz-May-14-2024"]
[Site "Chess.com"]
[Date "2024.05.14"]
[Round "8"]
[White "artin10862"]
[Black "Duhless"]
[Result "0-1"]
[WhiteElo "2908"]
[BlackElo "3125"]
[TimeControl "180+1"]
[EndTime "15:26:41 PDT"]
[Termination "Duhless won by resignation"]

1. e4 {[%clk 0:02:59.9]} 1... c5 {[%clk 0:02:59.5]} 2. Nf3 {[%clk 0:02:58.7]}
2... d6 {[%clk 0:03:00.1]} 3. d4 {[%clk 0:02:59]} 3... cxd4 {[%clk 0:03:01]} 4.
Nxd4 {[%clk 0:02:59.9]} 4... Nf6 {[%clk 0:03:01.5]} 5. Nc3 {[%clk 0:03:00.6]}
5... Nc6 {[%clk 0:03:01.7]} 6. h3 {[%clk 0:02:59.1]} 6... g6 {[%clk 0:03:00.7]}
7. Bc4 {[%clk 0:02:56.6]} 7... Bg7 {[%clk 0:03:00.3]} 8. Nf3 {[%clk 0:02:57.1]}
8... O-O {[%clk 0:03:00.1]} 9. O-O {[%clk 0:02:57.6]} 9... Bd7 {[%clk
0:03:00.1]} 10. a4 {[%clk 0:02:55]} 10... Rc8 {[%clk 0:02:59.6]} 11. Qe2 {[%clk
0:02:55.7]} 11... Qa5 {[%clk 0:02:56.5]} 12. Rd1 {[%clk 0:02:51.6]} 12... Ne5
{[%clk 0:02:43.3]} 13. Bb3 {[%clk 0:02:39.5]} 13... Nxf3+ {[%clk 0:02:39.7]} 14.
Qxf3 {[%clk 0:02:40.4]} 14... Bc6 {[%clk 0:02:38.4]} 15. Be3 {[%clk 0:02:38.3]}
15... Nd7 {[%clk 0:02:28.2]} 16. Bd4 {[%clk 0:02:36]} 16... Bxd4 {[%clk
0:02:27]} 17. Rxd4 {[%clk 0:02:36.9]} 17... Nf6 {[%clk 0:02:27.1]} 18. Rad1
{[%clk 0:02:34.6]} 18... Kg7 {[%clk 0:02:26.7]} 19. Qe3 {[%clk 0:02:34.4]} 19...
Qc5 {[%clk 0:02:23.2]} 20. Nd5 {[%clk 0:02:28]} 20... e5 {[%clk 0:02:07.5]} 21.
Rc4 {[%clk 0:01:56.9]} 21... Qxe3 {[%clk 0:02:05.8]} 22. Nxe3 {[%clk 0:01:57.6]}
22... Nxe4 {[%clk 0:01:47.5]} 23. f3 {[%clk 0:01:57.5]} 23... Nc5 {[%clk
0:01:40.5]} 24. Rxd6 {[%clk 0:01:57.3]} 24... Nxb3 {[%clk 0:01:40.4]} 25. cxb3
{[%clk 0:01:58.2]} 25... Rfd8 {[%clk 0:01:39.7]} 26. Rxd8 {[%clk 0:01:58]} 26...
Rxd8 {[%clk 0:01:40.6]} 27. Rc3 {[%clk 0:01:51.5]} 27... Kf6 {[%clk 0:01:20.5]}
28. Kf1 {[%clk 0:01:40.4]} 28... Ke6 {[%clk 0:01:11.6]} 29. Ke2 {[%clk
0:01:34.2]} 29... f5 {[%clk 0:01:04.1]} 30. g3 {[%clk 0:01:30.8]} 30... f4
{[%clk 0:00:51.1]} 31. Nf1 {[%clk 0:01:29.8]} 31... Rd4 {[%clk 0:00:45.7]} 32.
gxf4 {[%clk 0:01:20.9]} 32... Rxf4 {[%clk 0:00:44.2]} 33. Kf2 {[%clk 0:01:01.5]}
33... e4 {[%clk 0:00:38.1]} 34. b4 {[%clk 0:00:53.2]} 34... Bxa4 {[%clk
0:00:28.9]} 35. Nd2 {[%clk 0:00:46.7]} 35... exf3 {[%clk 0:00:26.8]} 36. Kg3
{[%clk 0:00:37.9]} 36... Rxb4 {[%clk 0:00:25.7]} 37. Nxf3 {[%clk 0:00:36.7]}
37... Rxb2 {[%clk 0:00:21.2]} 38. Ng5+ {[%clk 0:00:37]} 38... Kd5 {[%clk
0:00:20.2]} 39. Nxh7 {[%clk 0:00:36.4]} 39... Rb3 {[%clk 0:00:19.4]} 0-1

[Event "Late-Titled-Tuesday-Blitz-May-14-2024"]
[Site "Chess.com"]
[Date "2024.05.14"]
[Round "8"]
[White "lluiss"]
[Black "Redzishchess"]
[Result "0-1"]
[WhiteElo "2233"]
[BlackElo "2497"]
[TimeControl "180+1"]
[EndTime "15:26:43 PDT"]
[Termination "Redzishchess won on time"]

1. Nf3 {[%clk 0:03:00.9]} 1... Nf6 {[%clk 0:02:58.4]} 2. d4 {[%clk 0:03:00.1]}
2... e6 {[%clk 0:02:56.8]} 3. g3 {[%clk 0:02:59.2]} 3... b6 {[%clk 0:02:57.1]}
4. Bg2 {[%clk 0:02:59.1]} 4... Bb7 {[%clk 0:02:57.5]} 5. O-O {[%clk 0:02:59.4]}
5... Be7 {[%clk 0:02:49]} 6. Nbd2 {[%clk 0:02:58.8]} 6... O-O {[%clk 0:02:43.8]}
7. Re1 {[%clk 0:02:58.9]} 7... Ne4 {[%clk 0:02:35.9]} 8. e3 {[%clk 0:02:40.3]}
8... f5 {[%clk 0:02:34.4]} 9. Ne5 {[%clk 0:02:32.9]} 9... d6 {[%clk 0:02:24.7]}
10. Nd3 {[%clk 0:02:28.3]} 10... Nd7 {[%clk 0:02:20.9]} 11. f4 {[%clk 0:02:12]}
11... Ndf6 {[%clk 0:02:15.6]} 12. Nf2 {[%clk 0:02:11.3]} 12... Nxf2 {[%clk
0:02:07.2]} 13. Kxf2 {[%clk 0:02:10]} 13... Ng4+ {[%clk 0:01:56]} 14. Kg1 {[%clk
0:02:07.1]} 14... Bxg2 {[%clk 0:01:56.2]} 15. Kxg2 {[%clk 0:02:06.5]} 15... e5
{[%clk 0:01:55.7]} 16. dxe5 {[%clk 0:01:58.2]} 16... dxe5 {[%clk 0:01:56.6]} 17.
Nf3 {[%clk 0:01:58.4]} 17... e4 {[%clk 0:00:59.4]} 18. Nd4 {[%clk 0:01:38.5]}
18... Qd7 {[%clk 0:00:59.4]} 19. c3 {[%clk 0:01:36.2]} 19... c5 {[%clk
0:00:50.5]} 20. Qb3+ {[%clk 0:01:33.5]} 20... Kh8 {[%clk 0:00:51]} 21. Ne6
{[%clk 0:01:02.4]} 21... Rf6 {[%clk 0:00:37.8]} 22. Ng5 {[%clk 0:01:02.2]} 22...
Nh6 {[%clk 0:00:38]} 23. Rd1 {[%clk 0:01:00.1]} 23... Rd6 {[%clk 0:00:37.9]} 24.
Rxd6 {[%clk 0:00:40.5]} 24... Qxd6 {[%clk 0:00:38.8]} 25. Qe6 {[%clk 0:00:40.7]}
25... Rd8 {[%clk 0:00:26.5]} 26. b3 {[%clk 0:00:20.3]} 26... Bxg5 {[%clk
0:00:22.6]} 27. Qxd6 {[%clk 0:00:19.1]} 27... Rxd6 {[%clk 0:00:23.5]} 28. fxg5
{[%clk 0:00:19]} 28... Ng4 {[%clk 0:00:24.4]} 29. h3 {[%clk 0:00:14.6]} 29...
Ne5 {[%clk 0:00:24.6]} 0-1

[Event "Late-Titled-Tuesday-Blitz-May-14-2024"]
[Site "Chess.com"]
[Date "2024.05.14"]
[Round "8"]
[White "Licancabur"]
[Black "VictorFcQNK"]
[Result "1-0"]
[WhiteElo "2492"]
[BlackElo "2150"]
[TimeControl "180+1"]
[EndTime "15:26:43 PDT"]
[Termination "Licancabur won on time"]

1. f4 {[%clk 0:03:00.9]} 1... e5 {[%clk 0:02:58.3]} 2. fxe5 {[%clk 0:02:59.6]}
2... d6 {[%clk 0:02:58.6]} 3. exd6 {[%clk 0:02:58.7]} 3... Bxd6 {[%clk
0:02:58.9]} 4. Nf3 {[%clk 0:02:59.2]} 4... g5 {[%clk 0:02:59]} 5. g3 {[%clk
0:02:58.6]} 5... h5 {[%clk 0:02:58.2]} 6. d4 {[%clk 0:02:54.4]} 6... h4 {[%clk
0:02:57.4]} 7. Bxg5 {[%clk 0:02:49.4]} 7... f6 {[%clk 0:02:50.5]} 8. Bxh4 {[%clk
0:02:47.7]} 8... Bg4 {[%clk 0:02:48.7]} 9. Qd3 {[%clk 0:02:42.4]} 9... Kf7
{[%clk 0:02:20.3]} 10. Nbd2 {[%clk 0:02:30.8]} 10... Nc6 {[%clk 0:02:20.1]} 11.
Bg2 {[%clk 0:02:24.8]} 11... Nb4 {[%clk 0:02:17.9]} 12. Qb3+ {[%clk 0:02:12.3]}
12... Be6 {[%clk 0:02:13.5]} 13. c4 {[%clk 0:02:09.7]} 13... a5 {[%clk
0:02:01.2]} 14. d5 {[%clk 0:01:53.1]} 14... Bf5 {[%clk 0:02:00.3]} 15. Nd4
{[%clk 0:01:53.3]} 15... Bg6 {[%clk 0:01:38.5]} 16. a3 {[%clk 0:01:40.7]} 16...
a4 {[%clk 0:01:07.2]} 17. Qe3 {[%clk 0:01:36.9]} 17... Na6 {[%clk 0:00:50]} 18.
Ne6 {[%clk 0:01:29.6]} 18... Qd7 {[%clk 0:00:48.9]} 19. Bh3 {[%clk 0:01:27]}
19... Qe7 {[%clk 0:00:34.8]} 20. Rf1 {[%clk 0:01:04.2]} 20... Nc5 {[%clk
0:00:27.1]} 21. Ng5+ {[%clk 0:00:55.5]} 21... Kg7 {[%clk 0:00:20.9]} 22. Qxe7+
{[%clk 0:00:55.2]} 22... Nxe7 {[%clk 0:00:19.8]} 23. Ne6+ {[%clk 0:00:51.7]}
23... Nxe6 {[%clk 0:00:19.8]} 24. Bxf6+ {[%clk 0:00:50.6]} 24... Kh6 {[%clk
0:00:17]} 25. Bxe6 {[%clk 0:00:49.9]} 25... Rhf8 {[%clk 0:00:13.6]} 26. e4
{[%clk 0:00:35.6]} 26... Ra6 {[%clk 0:00:09.1]} 27. e5 {[%clk 0:00:33.1]} 27...
Bc5 {[%clk 0:00:09]} 28. Rf4 {[%clk 0:00:32.5]} 28... Rb6 {[%clk 0:00:06.5]} 29.
O-O-O {[%clk 0:00:28.3]} 29... Bxa3 {[%clk 0:00:05.1]} 30. Rh4+ {[%clk
0:00:26.3]} 30... Bh5 {[%clk 0:00:04.3]} 31. bxa3 {[%clk 0:00:26.5]} 1-0

[Event "Late-Titled-Tuesday-Blitz-May-14-2024"]
[Site "Chess.com"]
[Date "2024.05.14"]
[Round "8"]
[White "Seochesspie"]
[Black "rhungaski"]
[Result "1/2-1/2"]
[WhiteElo "2819"]
[BlackElo "2551"]
[TimeControl "180+1"]
[EndTime "15:26:59 PDT"]
[Termination "Game drawn by repetition"]

1. Nf3 {[%clk 0:03:00.9]} 1... g6 {[%clk 0:02:59.8]} 2. g3 {[%clk 0:02:59.7]}
2... Bg7 {[%clk 0:03:00.3]} 3. Bg2 {[%clk 0:03:00.1]} 3... d6 {[%clk 0:03:01.2]}
4. O-O {[%clk 0:03:00]} 4... Nf6 {[%clk 0:03:01.5]} 5. c4 {[%clk 0:02:58.4]}
5... O-O {[%clk 0:03:00.3]} 6. Nc3 {[%clk 0:02:58.9]} 6... e5 {[%clk 0:03:00.5]}
7. d3 {[%clk 0:02:58.5]} 7... c6 {[%clk 0:02:59.9]} 8. Rb1 {[%clk 0:02:58.3]}
8... a5 {[%clk 0:02:59.5]} 9. a3 {[%clk 0:02:57.9]} 9... h6 {[%clk 0:02:59.9]}
10. b4 {[%clk 0:02:56.9]} 10... axb4 {[%clk 0:03:00.8]} 11. axb4 {[%clk
0:02:57.7]} 11... Re8 {[%clk 0:03:01.7]} 12. b5 {[%clk 0:02:56.7]} 12... d5
{[%clk 0:03:02]} 13. bxc6 {[%clk 0:02:55.1]} 13... bxc6 {[%clk 0:03:02.9]} 14.
Na4 {[%clk 0:02:53.2]} 14... e4 {[%clk 0:02:52.8]} 15. Nd4 {[%clk 0:02:40.9]}
15... Nfd7 {[%clk 0:02:13]} 16. e3 {[%clk 0:02:33.1]} 16... Ne5 {[%clk
0:01:52.6]} 17. dxe4 {[%clk 0:02:29.3]} 17... dxc4 {[%clk 0:01:32.6]} 18. Nb6
{[%clk 0:02:21.4]} 18... Ra2 {[%clk 0:01:32.6]} 19. Nxc4 {[%clk 0:02:03.2]}
19... Bg4 {[%clk 0:01:27.4]} 20. Qb3 {[%clk 0:02:00.6]} 20... Ra8 {[%clk
0:00:58.9]} 21. Nxe5 {[%clk 0:01:51.4]} 21... Rxe5 {[%clk 0:00:55.4]} 22. Qb7
{[%clk 0:01:48.8]} 22... Rea5 {[%clk 0:00:52.9]} 23. Nxc6 {[%clk 0:01:33.5]}
23... Nxc6 {[%clk 0:00:53.8]} 24. Qxc6 {[%clk 0:01:34]} 24... Be2 {[%clk
0:00:54.1]} 25. Re1 {[%clk 0:01:29.8]} 25... Rc8 {[%clk 0:00:19]} 26. Qb6 {[%clk
0:01:21.9]} 26... Qxb6 {[%clk 0:00:17.2]} 27. Rxb6 {[%clk 0:01:22.8]} 27... Ra1
{[%clk 0:00:17.4]} 28. Bd2 {[%clk 0:01:10.9]} 28... Rxe1+ {[%clk 0:00:18.3]} 29.
Bxe1 {[%clk 0:01:11.6]} 29... Rc1 {[%clk 0:00:19]} 30. f3 {[%clk 0:01:08]} 30...
Rxe1+ {[%clk 0:00:11.5]} 31. Kf2 {[%clk 0:01:08]} 31... Bc3 {[%clk 0:00:12.2]}
32. Rc6 {[%clk 0:01:01.7]} 32... Bb4 {[%clk 0:00:11.2]} 33. Rb6 {[%clk
0:00:58.6]} 33... Ba5 {[%clk 0:00:11.5]} 34. Rb8+ {[%clk 0:00:58.7]} 34... Kg7
{[%clk 0:00:12]} 35. Ra8 {[%clk 0:00:58.8]} 35... Bc3 {[%clk 0:00:11.6]} 36. Rc8
{[%clk 0:00:57.9]} 36... Bb4 {[%clk 0:00:11.9]} 37. Rb8 {[%clk 0:00:53.9]} 37...
Bc3 {[%clk 0:00:11.9]} 38. Rb3 {[%clk 0:00:45.5]} 38... Ba5 {[%clk 0:00:10.8]}
39. Ra3 {[%clk 0:00:45.4]} 39... Bb4 {[%clk 0:00:11.1]} 40. Ra4 {[%clk
0:00:43.6]} 40... Bc3 {[%clk 0:00:11]} 41. Ra3 {[%clk 0:00:42.4]} 41... Bb4
{[%clk 0:00:11.3]} 42. Rb3 {[%clk 0:00:42.1]} 42... Ba5 {[%clk 0:00:11.4]} 43.
Ra3 {[%clk 0:00:35.5]} 43... Bb4 {[%clk 0:00:11.6]} 1/2-1/2

[Event "Late-Titled-Tuesday-Blitz-May-14-2024"]
[Site "Chess.com"]
[Date "2024.05.14"]
[Round "8"]
[White "hawes33"]
[Black "BestestBP"]
[Result "0-1"]
[WhiteElo "2364"]
[BlackElo "2205"]
[TimeControl "180+1"]
[EndTime "15:27:01 PDT"]
[Termination "BestestBP won by resignation"]

1. e4 {[%clk 0:03:00.4]} 1... e5 {[%clk 0:02:59.9]} 2. Nf3 {[%clk 0:02:59.7]}
2... Nc6 {[%clk 0:03:00.6]} 3. d4 {[%clk 0:02:59.5]} 3... exd4 {[%clk
0:02:59.8]} 4. Bc4 {[%clk 0:02:58.8]} 4... Nf6 {[%clk 0:02:57.6]} 5. O-O {[%clk
0:02:58.5]} 5... Nxe4 {[%clk 0:02:56.2]} 6. Re1 {[%clk 0:02:58.3]} 6... d5
{[%clk 0:02:56.6]} 7. Bxd5 {[%clk 0:02:58.5]} 7... Qxd5 {[%clk 0:02:57.5]} 8.
Nc3 {[%clk 0:02:58.7]} 8... Qd7 {[%clk 0:02:58.2]} 9. Nxe4 {[%clk 0:02:58.9]}
9... Be7 {[%clk 0:02:58.9]} 10. Nc5 {[%clk 0:02:45.1]} 10... Qd5 {[%clk
0:02:56.5]} 11. Nb3 {[%clk 0:02:24.8]} 11... O-O {[%clk 0:02:54.2]} 12. Nbxd4
{[%clk 0:02:24.5]} 12... Nxd4 {[%clk 0:02:53.2]} 13. Nxd4 {[%clk 0:02:23.4]}
13... Bf6 {[%clk 0:02:52.3]} 14. c3 {[%clk 0:02:22.6]} 14... Rd8 {[%clk
0:02:39.8]} 15. Be3 {[%clk 0:02:18.1]} 15... a6 {[%clk 0:02:26]} 16. Qf3 {[%clk
0:02:14.5]} 16... Qxf3 {[%clk 0:02:20]} 17. Nxf3 {[%clk 0:02:15.4]} 17... Bg4
{[%clk 0:02:18.6]} 18. Nd4 {[%clk 0:02:14.6]} 18... c5 {[%clk 0:02:18.2]} 19.
Nb3 {[%clk 0:02:12.9]} 19... b6 {[%clk 0:02:18.3]} 20. f3 {[%clk 0:02:12.4]}
20... Be6 {[%clk 0:02:16.7]} 21. Rad1 {[%clk 0:02:12.1]} 21... a5 {[%clk
0:02:15.5]} 22. Kf2 {[%clk 0:02:10.4]} 22... a4 {[%clk 0:02:15.5]} 23. Nc1
{[%clk 0:02:10.6]} 23... a3 {[%clk 0:02:14.2]} 24. Rxd8+ {[%clk 0:02:09.4]}
24... Rxd8 {[%clk 0:02:13.9]} 25. bxa3 {[%clk 0:02:04.4]} 25... Bxc3 {[%clk
0:02:13.7]} 26. Re2 {[%clk 0:02:05]} 26... h6 {[%clk 0:02:05.9]} 27. a4 {[%clk
0:02:04.5]} 27... Bd7 {[%clk 0:01:52.5]} 28. Rc2 {[%clk 0:02:02.6]} 28... Ba5
{[%clk 0:01:43.9]} 29. Rc4 {[%clk 0:01:53.7]} 29... Be6 {[%clk 0:01:41.3]} 30.
Re4 {[%clk 0:01:50.6]} 30... Bd5 {[%clk 0:01:34.6]} 31. Re7 {[%clk 0:01:49]}
31... Bc6 {[%clk 0:01:31.9]} 32. Nb3 {[%clk 0:01:48.2]} 32... Bb4 {[%clk
0:01:28.3]} 33. a5 {[%clk 0:01:48.1]} 33... c4 {[%clk 0:01:21.3]} 34. Rc7 {[%clk
0:01:47.7]} 34... cxb3 {[%clk 0:01:17.2]} 35. axb3 {[%clk 0:01:46.5]} 35... Bd5
{[%clk 0:01:06.6]} 36. axb6 {[%clk 0:01:44.1]} 36... Rb8 {[%clk 0:01:00.4]} 37.
Rd7 {[%clk 0:01:35.8]} 37... Be6 {[%clk 0:00:55.9]} 38. Ra7 {[%clk 0:01:33]}
38... Bxb3 {[%clk 0:00:46.3]} 39. b7 {[%clk 0:01:32.6]} 39... Bd5 {[%clk
0:00:46.3]} 40. Ra8 {[%clk 0:01:25.3]} 40... Rxa8 {[%clk 0:00:43.7]} 41. bxa8=Q+
{[%clk 0:01:26.2]} 41... Bxa8 {[%clk 0:00:44]} 42. Kg3 {[%clk 0:01:26.2]} 42...
Bd6+ {[%clk 0:00:43]} 43. Kh3 {[%clk 0:01:25.5]} 43... Kh7 {[%clk 0:00:38.9]}
44. Bd4 {[%clk 0:01:25.7]} 44... Kg6 {[%clk 0:00:38.3]} 45. Bc3 {[%clk
0:01:24.1]} 45... h5 {[%clk 0:00:35.7]} 46. g4 {[%clk 0:01:19.7]} 46... Bxf3
{[%clk 0:00:34.7]} 47. gxh5+ {[%clk 0:01:19.7]} 47... Bxh5 {[%clk 0:00:34.9]}
48. Kh4 {[%clk 0:01:19]} 48... Bxh2 {[%clk 0:00:32.6]} 49. Bd2 {[%clk
0:01:15.2]} 49... Bd6 {[%clk 0:00:25.8]} 50. Be3 {[%clk 0:01:12.3]} 50... Bf3
{[%clk 0:00:25.4]} 51. Bf2 {[%clk 0:01:11.4]} 51... Kf5 {[%clk 0:00:25]} 52. Bd4
{[%clk 0:01:09]} 52... g5+ {[%clk 0:00:24.1]} 53. Kh3 {[%clk 0:01:08.6]} 53...
g4+ {[%clk 0:00:22.1]} 54. Kh4 {[%clk 0:01:09]} 54... Kf4 {[%clk 0:00:14.3]} 55.
Bf2 {[%clk 0:01:05.6]} 55... Be7+ {[%clk 0:00:12.8]} 56. Kh5 {[%clk 0:01:05.2]}
56... g3+ {[%clk 0:00:13.4]} 57. Kh6 {[%clk 0:01:04.5]} 57... gxf2 {[%clk
0:00:13.9]} 58. Kg7 {[%clk 0:01:05]} 58... f1=Q {[%clk 0:00:14.2]} 59. Kxf7
{[%clk 0:01:05.2]} 59... Bh4 {[%clk 0:00:14.5]} 60. Kg6 {[%clk 0:01:04.9]} 60...
Qg2+ {[%clk 0:00:14.8]} 61. Kf7 {[%clk 0:01:04.5]} 61... Bd5+ {[%clk 0:00:14.6]}
0-1

[Event "Late-Titled-Tuesday-Blitz-May-14-2024"]
[Site "Chess.com"]
[Date "2024.05.14"]
[Round "8"]
[White "balack95"]
[Black "Christian-Toth"]
[Result "0-1"]
[WhiteElo "2476"]
[BlackElo "2385"]
[TimeControl "180+1"]
[EndTime "15:27:02 PDT"]
[Termination "Christian-Toth won by checkmate"]

1. d4 {[%clk 0:03:00.9]} 1... d5 {[%clk 0:02:59.4]} 2. c4 {[%clk 0:03:00.5]}
2... e6 {[%clk 0:02:59.3]} 3. Nc3 {[%clk 0:03:00.3]} 3... c5 {[%clk 0:02:58.6]}
4. cxd5 {[%clk 0:03:00.4]} 4... exd5 {[%clk 0:02:59.5]} 5. Nf3 {[%clk
0:03:00.9]} 5... Nc6 {[%clk 0:02:58.7]} 6. g3 {[%clk 0:03:01.5]} 6... Nf6 {[%clk
0:02:58.8]} 7. Bg2 {[%clk 0:03:02]} 7... Be7 {[%clk 0:02:58.9]} 8. Bg5 {[%clk
0:03:02.4]} 8... O-O {[%clk 0:02:57.5]} 9. O-O {[%clk 0:03:03]} 9... c4 {[%clk
0:02:57.3]} 10. Ne5 {[%clk 0:03:03.6]} 10... Be6 {[%clk 0:02:56.7]} 11. Nxc6
{[%clk 0:03:03.4]} 11... bxc6 {[%clk 0:02:55.8]} 12. b3 {[%clk 0:03:02.5]} 12...
Rc8 {[%clk 0:02:29.6]} 13. bxc4 {[%clk 0:03:01.9]} 13... dxc4 {[%clk 0:02:30.5]}
14. Rc1 {[%clk 0:02:47.7]} 14... Qa5 {[%clk 0:02:30.1]} 15. e4 {[%clk
0:02:38.3]} 15... Rfd8 {[%clk 0:02:28.7]} 16. Bxf6 {[%clk 0:02:22.3]} 16... Bxf6
{[%clk 0:02:26.6]} 17. Ne2 {[%clk 0:01:55.5]} 17... Qxa2 {[%clk 0:02:12.6]} 18.
d5 {[%clk 0:01:52.6]} 18... cxd5 {[%clk 0:02:08.2]} 19. exd5 {[%clk 0:01:53.5]}
19... Bg4 {[%clk 0:02:06.8]} 20. Rc2 {[%clk 0:01:50.2]} 20... Qb3 {[%clk
0:02:04.5]} 21. h3 {[%clk 0:01:38.8]} 21... Bf5 {[%clk 0:01:52.4]} 22. Rd2
{[%clk 0:01:34.6]} 22... Qxd1 {[%clk 0:01:36.9]} 23. Rdxd1 {[%clk 0:01:30.2]}
23... c3 {[%clk 0:01:27.7]} 24. Nc1 {[%clk 0:00:28.6]} 24... c2 {[%clk
0:00:53.7]} 25. Rde1 {[%clk 0:00:27.3]} 25... a5 {[%clk 0:00:47.5]} 26. g4
{[%clk 0:00:27.7]} 26... Bd7 {[%clk 0:00:43]} 27. Be4 {[%clk 0:00:27.2]} 27...
Bb5 {[%clk 0:00:41.6]} 28. Bd3 {[%clk 0:00:21.9]} 28... Bxd3 {[%clk 0:00:35.3]}
29. Nxd3 {[%clk 0:00:22.8]} 29... Rxd5 {[%clk 0:00:34.6]} 30. Nc1 {[%clk
0:00:23.7]} 30... a4 {[%clk 0:00:23.3]} 31. Re3 {[%clk 0:00:23.5]} 31... Bb2
{[%clk 0:00:20.6]} 32. Kg2 {[%clk 0:00:21.3]} 32... g6 {[%clk 0:00:19.5]} 33.
Rd3 {[%clk 0:00:16.8]} 33... Rxd3 {[%clk 0:00:18.6]} 34. Nxd3 {[%clk 0:00:17.7]}
34... a3 {[%clk 0:00:18.2]} 35. Nc1 {[%clk 0:00:16.2]} 35... Bxc1 {[%clk
0:00:17.1]} 36. Rxc1 {[%clk 0:00:17.1]} 36... a2 {[%clk 0:00:17.3]} 37. Kf3
{[%clk 0:00:17.4]} 37... a1=Q {[%clk 0:00:16.9]} 38. Rxa1 {[%clk 0:00:18.3]}
38... c1=Q {[%clk 0:00:16.9]} 39. Rxc1 {[%clk 0:00:19.2]} 39... Rxc1 {[%clk
0:00:16.3]} 40. Kg3 {[%clk 0:00:20.1]} 40... Rc3+ {[%clk 0:00:17]} 41. Kh4
{[%clk 0:00:21]} 41... Kg7 {[%clk 0:00:17.1]} 42. f4 {[%clk 0:00:21.8]} 42... h6
{[%clk 0:00:17.6]} 43. g5 {[%clk 0:00:22.4]} 43... h5 {[%clk 0:00:17]} 44. f5
{[%clk 0:00:20.7]} 44... gxf5 {[%clk 0:00:17.9]} 45. Kxh5 {[%clk 0:00:20]} 45...
Rxh3# {[%clk 0:00:18.1]} 0-1